Workbook

Sheet SUMMARY
A7: TITUSVILLE ALF
A8: Titusville, FL
A9: 2025-07-18
A11: BUDGET ESTIMATE
A12: 4-Story, 137-Bed, Assisted Living Facility using Tunnel-Form Construction
A14: Description | B14: Beds | C14: Area | D14: Total | E14: % of Building | F14: %of Total | G14: Cost per Key | H14: SF Cost
A15: 01 - General Conditions/Fee/Bond/Overhead | B15: 137 | C15: 106915 | D15: 2095850.35 | E15: =D15/$D$33 -> 0.0912159221 | F15: =D15/$D$33 -> 0.0912159221 | G15: =D15/B15 -> 15298.17774
A16: 02 - Site Construction | B16: 137 | C16: 106915 | D16: =C16*H16 -> 0 | F16: 0 | G16: =D16/B16 -> 0 | H16: ='Budget Worksheet'!F15 -> 0
A17: 03 - Concrete | B17: 137 | C17: 106915 | D17: =C17*H17 -> 4597345 | E17: 0.200086358 | F17: 0.200086358 | G17: =D17/B17 -> 33557.26277 | H17: ='Budget Worksheet'!F18 -> 43
A18: 04 - Masonry | B18: 137 | C18: 106915 | D18: 962235 | E18: 0.04187854004 | F18: 0.04187854004 | G18: =D18/B18 -> 7023.613139 | H18: ='Budget Worksheet'!F21 -> 9
A19: 05 - Metals | B19: 137 | C19: 106915 | D19: 588032.5 | E19: 0.02559244113 | F19: 0.02559244113 | G19: 4292.208029 | H19: ='Budget Worksheet'!F24 -> 5.5
A20: 06 - Wood, Plastics, and Composites | B20: 137 | C20: 106915 | D20: 487500 | E20: 0.02121705017 | F20: 0.02121705017 | G20: 3558.394161 | H20: ='Budget Worksheet'!F29 -> 4.559696956
A21: 07 - Thermal and Moisture Protection | B21: 137 | C21: 106915 | D21: 987644.55 | E21: 0.04298441839 | F21: 0.04298441839 | G21: 7209.084307 | H21: ='Budget Worksheet'!F36 -> 9.237661226
A22: 08 - Openings | B22: 137 | C22: 106915 | D22: 1799000 | E22: 0.07829635539 | F22: 0.07829635539 | G22: 13131.38686 | H22: ='Budget Worksheet'!F42 -> 16.82645092
A23: 09 - Finishes | B23: 137 | C23: 106915 | D23: 2688156.95 | E23: 0.1169943813 | F23: 0.1169943813 | G23: 19621.58358 | H23: ='Budget Worksheet'!F50 -> 25.14293551
A24: 10 - Specialties | B24: 137 | C24: 106915 | D24: 171000 | E24: 0.007442288367 | F24: 0.007442288367 | G24: 1248.175182 | H24: ='Budget Worksheet'!F62 -> 1.599401394
A25: 11 - Equipment (By Owner) | B25: 137 | C25: 106915 | D25: 0 | E25: 0 | F25: 0 | G25: 0 | H25: ='Budget Worksheet'!F70 -> 0
A26: 12 - FF&E (Install Only) | B26: 137 | C26: 106915 | D26: 100000 | E26: 0.004352215419 | F26: 0.004352215419 | G26: 729.9270073 | H26: ='Budget Worksheet'!F73 -> 0.9353224524
A27: 13 - Special Construction (Swimming Pool) | B27: 137 | C27: 106915 | D27: 0 | E27: 0 | F27: 0 | G27: 0 | H27: ='Budget Worksheet'!F78 -> 0
A28: 14 - Conveying Equipment | B28: 137 | C28: 106915 | D28: 260000 | E28: 0.01131576009 | F28: 0.01131576009 | G28: 1897.810219 | H28: ='Budget Worksheet'!F82 -> 2.431838376
A29: 21 - Fire Suppression | B29: 137 | C29: 106915 | D29: 962235 | E29: 0.04187854004 | F29: 0.04187854004 | G29: 7023.613139 | H29: ='Budget Worksheet'!F84 -> 9
A30: 22.5 - HVAC & Plumbing | B30: 137 | C30: 106915 | D30: 4525196 | E30: 0.1969462781 | F30: 0.1969462781 | G30: 33030.62774 | H30: ='Budget Worksheet'!F85+'Budget Worksheet'!F87+'Budget Worksheet'!F86 -> 42.3251742
A31: 26 - Electrical | B31: 137 | C31: 106915 | D31: =C31*H31 -> 2127608.5 | E31: 0.0925981052 | F31: 0.0925981052 | G31: 15529.98905 | H31: ='Budget Worksheet'!F96 -> 19.9
A32: 30 - Contingency | B32: 137 | C32: 106915 | D32: =C32*H32 -> 625000 | E32: 0.02720134637 | F32: 0.02720134637 | G32: 4562.043796 | H32: ='Budget Worksheet'!F99 -> 5.845765328
A33: Building Total: | B33: 137 | C33: 106915 | D33: =SUM(D15:$D$32) -> 22976803.85 | E33: =SUM(E15:E31) -> 0.9727986536 | F33: 1 | G33: =SUM(G15:G32) -> 167713.8967 | H33: =SUM(H15:H32) -> 195.3042464

Sheet Budget Worksheet
A1: Titusville ALF Budget Worksheet
A3: Floors | B3: 4
A4: Beds | B4: 137
A5: Area | B5: 106915
A7: Description/Division | B7: Qty | C7: Unit | D7: UP | E7: Total | F7: $/SF | G7: $/Unit
A8: Division 1
A9: General Conditions | B9: 1 | C9: LS | D9: 1095850 | E9: =B9*D9 -> 1095850 | F9: =E9/$B$5 -> 10.24973109 | G9: =E9/$B$4 -> 7998.905109
A10: Subtotal | E10: =SUM(E9:E9) -> 1095850 | F10: =SUM(F9:F9) -> 10.24973109 | G10: =SUM(G9:G9) -> 7998.905109
A11: Division 2
A12: Site Work - By Others (Misc. Allowance) | B12: 0 | C12: LS | E12: =B12*D12 -> 0 | F12: =E12/$B$5 -> 0 | G12: =E12/$B$4 -> 0
A13: Irrigation & Landscaping - By Owner | B13: 0 | C13: LS | D13: 0 | E13: =B13*D13 -> 0 | F13: =E13/$B$5 -> 0 | G13: =E13/$B$4 -> 0
A14: Bike Racks | B14: 0 | C14: EA | D14: 0 | E14: 0 | F14: 0 | G14: 0
A15: Subtotal | E15: =SUM(E12:E14) -> 0 | F15: =SUM(F12:F14) -> 0 | G15: =SUM(G12:G14) -> 0
A16: Division 3
A17: Tunnel-Form Construction | B17: =$B$5 -> 106915 | C17: SF | D17: 43 | E17: =B17*D17 -> 4597345 | F17: =E17/$B$5 -> 43 | G17: =E17/$B$4 -> 33557.26277
A18: Subtotal | E18: =SUM(E17:E17) -> 4597345 | F18: =SUM(F17:F17) -> 43 | G18: =SUM(G17:G17) -> 33557.26277
A19: Division 4
A20: Masonry | B20: =$B$5 -> 106915 | C20: SF | D20: 9 | E20: =B20*D20 -> 962235 | F20: =E20/$B$5 -> 9 | G20: =E20/$B$4 -> 7023.613139
A21: Subtotal | E21: =SUM(E20:E20) -> 962235 | F21: =SUM(F20:F20) -> 9 | G21: =SUM(G20:G20) -> 7023.613139
A22: Division 5
A23: Structural Steel | B23: =$B$5 -> 106915 | C23: SF | D23: 5.5 | E23: =B23*D23 -> 588032.5 | F23: =E23/$B$5 -> 5.5 | G23: =E23/$B$4 -> 4292.208029
A24: Subtotal | E24: =SUM(E23:E23) -> 588032.5 | F24: =SUM(F23:F23) -> 5.5 | G24: =SUM(G23:G23) -> 4292.208029
A25: Division 6
A26: Rough Carpentry | B26: 1 | C26: LS | D26: 20000 | E26: =B26*D26 -> 20000 | F26: =E26/$B$5 -> 0.1870644905 | G26: =E26/$B$4 -> 145.9854015
A27: Millwork | B27: 1 | C27: LS | D27: 450000 | E27: =B27*D27 -> 450000 | F27: =E27/$B$5 -> 4.208951036 | G27: =E27/$B$4 -> 3284.671533
A28: Guestroom Vanities & Tops | B28: 100 | C28: EA | D28: 175 | E28: 17500 | F28: 0.1636814292 | G28: 127.7372263
A29: Subtotal | E29: =SUM(E26:E28) -> 487500 | F29: =SUM(F26:F28) -> 4.559696956 | G29: =SUM(G26:G28) -> 3558.394161
A30: Division 7
A31: Waterproofing | B31: 1 | C31: LS | D31: 10000 | E31: =B31*D31 -> 10000 | F31: =E31/$B$5 -> 0.09353224524 | G31: =E31/$B$4 -> 72.99270073
A32: Caulking & Sealants | B32: 1 | C32: LS | D32: 40000 | E32: =B32*D32 -> 40000 | F32: =E32/$B$5 -> 0.374128981 | G32: =E32/$B$4 -> 291.9708029
A33: Fireproofing Steel | B33: 0 | C33: LS | D33: 0 | E33: 0 | F33: 0 | G33: 0
A34: EIFS System (100%) | B34: =B5 -> 106915 | C34: SF | D34: 6.1 | E34: =B34*D34 -> 652181.5 | F34: 6.1 | G34: =E34/$B$4 -> 4760.448905
A35: TPO Roofing System | B35: =B5 -> 106915 | C35: SF | D35: 2.67 | E35: 285463.05 | F35: 2.67 | G35: 2083.671898
A36: Subtotal | E36: =SUM(E31:E35) -> 987644.55 | F36: =SUM(F31:F35) -> 9.237661226 | G36: =SUM(G31:G35) -> 7209.084307
A37: Division 8
A38: Doors, Frames, Hardware | B38: 1 | C38: LS | D38: 825000 | E38: =B38*D38 -> 825000 | F38: =E38/$B$5 -> 7.716410232 | G38: =E38/$B$4 -> 6021.89781
A39: Automatic Vestibule Door | B39: 0 | C39: LS | D39: 0 | E39: =B39*D39 -> 0 | F39: =E39/$B$5 -> 0 | G39: =E39/$B$4 -> 0
A40: Storefront & Windows | B40: 1 | C40: LS | D40: 974000 | E40: 974000 | F40: 9.110040687 | G40: 7109.489051
A41: Card Access Systems (NIC) | B41: 0 | C41: LS | D41: 0 | E41: 0 | F41: 0 | G41: 0
A42: Subtotal | E42: =SUM(E38:E41) -> 1799000 | F42: =SUM(F38:F41) -> 16.82645092 | G42: =SUM(G38:G41) -> 13131.38686
A43: Division 9
A44: Framing, Insulation, Drywall (Hotel) | B44: =$B$5-B45 -> 102915 | C44: SF | D44: 17 | E44: =B44*D44 -> 1749555 | F44: =E44/$B$5 -> 16.36398073 | G44: =E44/$B$4 -> 12770.47445
A45: Framing, Insulation, Drywall (Shell Only) | B45: 4000 | C45: SF | D45: 12 | E45: =B45*D45 -> 48000 | F45: =E45/$B$5 -> 0.4489547772 | G45: =E45/$B$4 -> 350.3649635
A46: Accoustical Ceilings | B46: =$B$5 -> 106915 | C46: SF | D46: 0.6 | E46: =B46*D46 -> 64149 | F46: =E46/$B$5 -> 0.6 | G46: =E46/$B$4 -> 468.2408759
A47: Flooring & Tile | B47: 106915 | C47: SF | D47: 4 | E47: 427660 | F47: 4 | G47: 3121.605839
A48: Carpet (Install Only) | B48: 106915 | C48: SF | D48: 0.65 | E48: =B48*D48 -> 69494.75 | F48: 0.65 | G48: =E48/$B$4 -> 507.2609489
A49: Paint & Install Wallcoverings | B49: 106915 | C49: SF | D49: 3.08 | E49: 329298.2 | F49: 3.08 | G49: 2403.636496
A50: Subtotal | E50: =SUM(E44:E49) -> 2688156.95 | F50: =SUM(F44:F49) -> 25.14293551 | G50: =SUM(G44:G49) -> 19621.58358
A51: Division 10
A52: Lockers | B52: 1 | C52: LS | D52: 5000 | E52: =B52*D52 -> 5000 | F52: =E52/$B$5 -> 0.04676612262 | G52: =E52/$B$4 -> 36.49635036
A53: Shower & Tub Surrounds | B53: 100 | C53: EA | D53: 550 | E53: 55000 | F53: 0.5144273488 | G53: 401.459854
A54: Fire Extinguishers & Cabinets | B54: 1 | C54: LS | D54: 7500 | E54: 7500 | F54: 0.07014918393 | G54: 54.74452555
A55: Glass Shower Doors | B55: 100 | C55: EA | D55: 450 | E55: 45000 | F55: 0.4208951036 | G55: 328.4671533
A56: Bath Accessories | B56: 1 | C56: LS | D56: 35000 | E56: 35000 | F56: 0.3273628583 | G56: 255.4744526
A57: Storage Shelving BOH (NIC) | C57: LS | D57: 0 | E57: 0 | F57: 0 | G57: 0
A58: Louvers, Vents, Screens | B58: 0 | C58: LS | D58: 20000 | E58: 0 | F58: 0 | G58: 0
A59: Patio Canopy | B59: 1 | C59: LS | D59: 23500 | E59: =B59*D59 -> 23500 | F59: 0.2198007763 | G59: =E59/$B$4 -> 171.5328467
A60: Exterior Bldg. Signage (NIC) | B60: 0 | C60: LS | D60: 0 | E60: =B60*D60 -> 0 | F60: 0 | G60: =E60/$B$4 -> 0
A61: Interior Bldg. Signage (NIC) | B61: 0 | C61: LS | D61: 0 | E61: 0 | F61: 0 | G61: 0
A62: Subtotal | E62: =SUM(E52:E61) -> 171000 | F62: =SUM(F52:F61) -> 1.599401394 | G62: =SUM(G52:G61) -> 1248.175182
A63: Division 11
A64: Kitchen & Bar Equipment (NIC) | B64: 0 | C64: LS | D64: 0 | E64: =B64*D64 -> 0 | F64: =E64/$B$5 -> 0 | G64: =E64/$B$4 -> 0
A65: Appliances (NIC) | B65: 0 | C65: LS | D65: 0 | E65: =B65*D65 -> 0 | F65: =E65/$B$5 -> 0 | G65: =E65/$B$4 -> 0
A66: Fitness Equipment (NIC) | B66: 0 | C66: LS | D66: 0 | E66: 0 | F66: 0 | G66: 0
A67: Laundry Equipment (NIC) | B67: 0 | C67: LS | D67: 0 | E67: 0 | F67: 0 | G67: 0
A68: Ice Machines (NIC) | B68: 0 | C68: LS | D68: 0 | E68: 0 | F68: 0 | G68: 0
A69: Guest Laundry (NIC) | B69: 0 | C69: LS | D69: 0 | E69: 0 | F69: 0 | G69: 0
A70: Subtotal | E70: =SUM(E64:E69) -> 0 | F70: =SUM(F64:F69) -> 0 | G70: =SUM(G64:G69) -> 0
A71: Division 12
A72: FF&E Installation (Warehousing By Others) | B72: 1 | C72: LS | D72: 100000 | E72: =B72*D72 -> 100000 | F72: =E72/$B$5 -> 0.9353224524 | G72: =E72/$B$4 -> 729.9270073
A73: Subtotal | E73: =SUM(E72:E72) -> 100000 | F73: =SUM(F72:F72) -> 0.9353224524 | G73: =SUM(G72:G72) -> 729.9270073
A74: Division 13
A75: Swimming Pool w/ADA Lift | B75: 0 | C75: LS | D75: 175000 | E75: =B75*D75 -> 0 | F75: =E75/$B$5 -> 0 | G75: =E75/$B$4 -> 0
A76: Pool Fence & Gates | B76: 0 | C76: LS | D76: 30000 | E76: =B76*D76 -> 0 | F76: =E76/$B$5 -> 0 | G76: =E76/$B$4 -> 0
A77: Hardscape Brick Pavers | B77: 0 | C77: LS | D77: 50000 | E77: 0 | F77: 0 | G77: 0
A78: Subtotal | E78: =SUM(E75:E77) -> 0 | F78: =SUM(F75:F77) -> 0 | G78: =SUM(G75:G77) -> 0
A79: Division 14
A80: Elevators | B80: 8 | C80: STOPS | D80: 32500 | E80: =B80*D80 -> 260000 | F80: =E80/$B$5 -> 2.431838376 | G80: =E80/$B$4 -> 1897.810219
A81: Linen Chute | B81: 0 | C81: LS | E81: =B81*D81 -> 0 | F81: =E81/$B$5 -> 0 | G81: =E81/$B$4 -> 0
A82: Subtotal | E82: =SUM(E80:E81) -> 260000 | F82: =SUM(F80:F81) -> 2.431838376 | G82: =SUM(G80:G81) -> 1897.810219
A83: Division 15
A84: Fire Sprinkler System | B84: =$B$5 -> 106915 | C84: SF | D84: 9 | E84: =B84*D84 -> 962235 | F84: =E84/$B$5 -> 9 | G84: =E84/$B$4 -> 7023.613139
A85: Plumbing (Hotel) | B85: =$B$5-B86 -> 102915 | C85: SF | D85: 17 | E85: =B85*D85 -> 1749555 | F85: =E85/$B$5 -> 16.36398073 | G85: =E85/$B$4 -> 12770.47445
A86: Plumbing (Shell Only) | B86: 4000 | C86: SF | D86: 15 | E86: =B86*D86 -> 60000 | F86: =E86/$B$5 -> 0.5611934714 | G86: =E86/$B$4 -> 437.9562044
A87: HVAC | B87: =$B$5 -> 106915 | C87: SF | D87: 25.4 | E87: 2715641 | F87: 25.4 | G87: 19822.19708
A88: Subtotal | E88: =SUM(E84:E87) -> 5487431 | F88: =SUM(F84:F87) -> 51.3251742 | G88: =SUM(G84:G87) -> 40054.24088
A89: Division 16
A90: Electrical (Hotel) | B90: =$B$5-B91 -> 102915 | C90: SF | D90: 18 | E90: =B90*D90 -> 1852470 | F90: =E90/$B$5 -> 17.32656783 | G90: =E90/$B$4 -> 13521.67883
A91: Electrical (Shell Only) | B91: 4000 | C91: SF | D91: 18 | E91: =B91*D91 -> 72000 | F91: =E91/$B$5 -> 0.6734321657 | G91: =E91/$B$4 -> 525.5474453
A92: Fire Alarm | B92: =$B$5 -> 106915 | C92: SF | D92: 1.25 | E92: =B92*D92 -> 133643.75 | F92: =E92/$B$5 -> 1.25 | G92: =E92/$B$4 -> 975.5018248
A93: BDA System | B93: 106915 | C93: SF | D93: 0.65 | E93: 69494.75 | F93: 0.65 | G93: 507.2609489
A94: Data Cabling (NIC) | B94: 0 | C94: LS | D94: 0 | E94: 0 | F94: 0 | G94: 0
A95: Data & Comm Equip. (NIC) | B95: 0 | C95: LS | D95: 0 | E95: 0 | F95: 0 | G95: 0
A96: Subtotal | E96: =SUM(E90:E95) -> 2127608.5 | F96: =SUM(F90:F95) -> 19.9 | G96: =SUM(G90:G95) -> 15529.98905
A97: Division 17
A98: Contingency | B98: 1 | C98: LS | D98: 625000 | E98: =B98*D98 -> 625000 | F98: =E98/$B$5 -> 5.845765328 | G98: =E98/$B$4 -> 4562.043796
A99: Subtotal | E99: =SUM(E98:E98) -> 625000 | F99: =SUM(F98:F98) -> 5.845765328 | G99: =SUM(G98:G98) -> 4562.043796
D101: Subtotal Direct Cost: | E101: =E99+E96+E88+E82+E78+E73+E62+E50+E42+E36+E29+E24+E21+E18+E15+E10 -> 21976803.5 | F101: =E101/$B$5 -> 205.5539775 | G101: =E101/$B$4 -> 160414.6241
D102: Fee: | E102: 1000000 | F102: =E102/$B$5 -> 9.353224524 | G102: =E102/$B$4 -> 7299.270073
D103: Grand Total: | E103: =SUM(E101:E102) -> 22976803.5 | F103: =E103/$B$5 -> 214.907202 | G103: =E103/$B$4 -> 167713.8942
